bitfinex-derivatives/quotes_BTCF0:USTF0_20251204
["timestamp","ask_amount","ask_price","bid_price","bid_amount"]
[1764885945519,0.00216253,92283.0,92282.0,0.07248322]
[1764885947912,0.05791871,92305.0,92304.0,0.0197805]
[1764885947913,0.0390206,92305.0,92304.0,0.0197805]
[1764885948119,0.0390206,92305.0,92304.0,0.0778405]
[1764885948314,0.0685006,92305.0,92304.0,0.0778405]
[1764885948916,0.02819,92309.0,92308.0,0.0688902]
[1764885949113,0.02819,92309.0,92308.0,0.07131022]
[1764885949318,0.05767,92309.0,92308.0,0.07131022]
[1764885949925,0.05967,92309.0,92308.0,0.07131022]
[1764885950115,0.06867,92309.0,92308.0,0.07231022]
[1764885951019,0.011,92309.0,92308.0,0.07231022]
[1764885953427,0.00016253,92314.0,92313.0,0.0688896]
[1764885953719,0.17623749,92330.0,92325.0,0.0688882]
[1764885953924,0.02846078,92326.0,92325.0,0.0688882]
[1764885954322,0.05794078,92326.0,92325.0,0.0688882]
[1764885960630,0.00027078,92326.0,92325.0,0.0688882]
[1764885962425,0.00016253,92335.0,92334.0,0.0853671]
[1764885962621,0.05767,92352.0,92351.0,0.0688851]
[1764885963629,0.085795,92352.0,92351.0,0.05806]
[1764885965126,0.0684855,92348.0,92347.0,0.0684555]
[1764885966029,0.05766,92348.0,92347.0,0.0684555]
[1764885966431,0.06066,92348.0,92347.0,0.0684555]
[1764885967623,0.06166,92348.0,92347.0,0.0684555]
[1764885976330,0.0724855,92348.0,92347.0,0.0684555]
[1764885977027,0.0724855,92348.0,92347.0,0.0108255]
[1764885978335,0.0724855,92348.0,92342.0,0.00016244]
[1764885978629,0.0684861,92343.0,92342.0,0.00016244]
[1764885980237,0.0704861,92343.0,92342.0,0.00016244]
[1764885981039,0.0714861,92343.0,92342.0,0.00016244]
[1764885981542,0.0684878,92328.0,92327.0,0.0684579]
[1764885982841,0.0684878,92328.0,92327.0,0.05963]
[1764885983045,0.0684878,92328.0,92327.0,0.03089]
[1764885983351,0.0684878,92328.0,92327.0,0.05963]
[1764885989952,0.05766,92328.0,92327.0,0.05963]
[1764885990252,0.17623561,92337.0,92327.0,0.05963]
[1764885990253,0.0108278,92329.0,92328.0,0.0684578]
[1764885990447,0.0389878,92329.0,92328.0,0.0684578]
[1764885990652,0.0684878,92329.0,92328.0,0.0684578]
[1764885991246,0.05766,92329.0,92328.0,0.0684578]
[1764885991446,0.02816,92329.0,92328.0,0.0684578]
[1764885991644,0.0684873,92333.0,92332.0,0.0684574]
[1764885991945,0.0684873,92333.0,92332.0,0.07087742]
[1764885993355,0.0684873,92333.0,92332.0,0.07187742]
[1764885993945,0.0684873,92333.0,92332.0,0.001]
[1764885994752,0.0108289,92319.0,92314.0,0.03897091]
[1764885994951,0.0669489,92319.0,92318.0,0.06228246]
[1764885995960,0.0669489,92319.0,92318.0,0.06628246]
[1764885999251,0.0669489,92319.0,92318.0,0.06386244]
[1764885999756,0.0669489,92319.0,92318.0,0.00416244]
[1764885999951,0.0669489,92319.0,92318.0,0.06386244]
[1764886000962,0.0669489,92319.0,92318.0,0.03390244]
[1764886001360,0.02871,92319.0,92318.0,0.06386244]
[1764886001566,0.07559871,92330.0,92329.0,0.0705277]
[1764886001567,0.0669476,92330.0,92329.0,0.0705277]
[1764886002257,0.0669476,92330.0,92329.0,0.0597]
[1764886002460,0.0669476,92330.0,92329.0,0.02974]
[1764886003053,0.0669476,92330.0,92329.0,0.03074]
[1764886003650,0.0669476,92330.0,92329.0,0.0607]
[1764886004966,0.0848376,92330.0,92329.0,0.0607]
[1764886006664,0.0848376,92330.0,92329.0,0.001]
[1764886007564,0.0848376,92330.0,92329.0,0.03015]
[1764886007964,0.0848376,92330.0,92329.0,0.05868]
[1764886009258,0.0848376,92330.0,92329.0,0.0695077]
[1764886012969,0.01768,92335.0,92329.0,0.0695077]
[1764886012970,0.05791871,92335.0,92334.0,0.05768]
[1764886013169,0.07744571,92360.0,92336.0,0.0685069]
[1764886013371,0.24419727,92360.0,92359.0,0.05768]
[1764886013569,0.07519,92355.0,92354.0,0.05768]
[1764886015372,0.07719,92355.0,92354.0,0.05768]
[1764886016074,0.0681256,92348.0,92347.0,0.0108256]
[1764886016468,0.0573,92348.0,92347.0,0.0108256]
[1764886016773,0.0573,92348.0,92347.0,0.0399756]
[1764886017173,0.0583,92348.0,92347.0,0.0399756]
[1764886018269,0.0583,92348.0,92347.0,0.0685056]
[1764886018469,0.0613,92348.0,92347.0,0.0685056]
[1764886021769,0.0613,92348.0,92345.0,0.00016244]
[1764886021770,0.07519,92346.0,92345.0,0.00016244]
[1764886021969,0.0573,92328.0,92327.0,0.068508]
[1764886023183,0.0573,92328.0,92327.0,0.069508]
[1764886026178,0.23190561,92337.0,92336.0,0.0679969]
[1764886026385,0.05583244,92337.0,92336.0,0.07041692]
[1764886028377,0.05683244,92337.0,92336.0,0.07041692]
[1764886028679,0.05783244,92337.0,92336.0,0.07041692]
[1764886029588,0.05783244,92337.0,92336.0,0.0679969]
[1764886032280,0.00216244,92337.0,92336.0,0.0679969]
[1764886037692,0.02985244,92337.0,92336.0,0.0679969]
[1764886044490,0.00116244,92337.0,92336.0,0.0679969]
[1764886045006,0.00116244,92337.0,92336.0,0.10696781]
[1764886045900,0.00116244,92337.0,92336.0,0.0679969]
[1764886046102,0.05683244,92337.0,92336.0,0.0679969]
[1764886049405,0.05683244,92337.0,92336.0,0.02946]
[1764886050509,0.05683244,92337.0,92336.0,0.05717]
[1764886051004,0.0108281,92329.0,92328.0,0.0679978]
[1764886051209,0.0664981,92329.0,92328.0,0.0679978]
[1764886052509,0.0664981,92329.0,92328.0,0.0699978]
[1764886053912,0.0664981,92329.0,92328.0,0.05917]
[1764886057118,0.0664981,92329.0,92328.0,0.03146]
[1764886057318,0.0664981,92329.0,92328.0,0.05921]
[1764886057722,0.05567,92329.0,92328.0,0.05921]
[1764886061224,0.0664977,92329.0,92328.0,0.0700378]
[1764886061616,0.0385177,92329.0,92328.0,0.0700378]
[1764886061820,0.0666777,92329.0,92328.0,0.0700378]
[1764886063224,0.0666777,92329.0,92328.0,0.002]
[1764886063617,0.0666777,92329.0,92328.0,0.02921]
[1764886063926,0.0666777,92329.0,92328.0,0.05656]
[1764886068327,0.05585,92329.0,92328.0,0.05656]
[1764886075733,0.05585,92329.0,92328.0,0.002]
[1764886076036,0.05585,92329.0,92328.0,0.05656]
[1764886078531,0.07489528,92335.0,92328.0,0.05656]
[1764886078532,0.02786,92335.0,92334.0,0.05456]
[1764886078736,0.02786,92335.0,92334.0,0.06780712]
[1764886079239,0.05729,92335.0,92334.0,0.06780712]
[1764886079629,0.05829,92335.0,92334.0,0.06780712]
[1764886080535,0.001,92335.0,92334.0,0.06780712]
[1764886081937,0.001,92335.0,92334.0,0.08415712]
[1764886082837,0.0108246,92356.0,92345.0,0.0653859]
[1764886083336,0.0108238,92363.0,92345.0,0.0653859]
[1764886083635,0.05824528,92365.0,92345.0,0.0653859]
[1764886083836,0.00027066,92366.0,92345.0,0.0653859]
[1764886084039,0.00116105,92346.0,92345.0,0.0653859]
[1764886085041,0.00316105,92346.0,92345.0,0.0653859]
[1764886085342,0.00153191,92346.0,92345.0,0.0653859]
[1764886085539,0.00027066,92366.0,92365.0,0.0681035]
[1764886086134,0.05810066,92366.0,92365.0,0.0681035]
[1764886086332,0.00027066,92366.0,92365.0,0.0681035]
[1764886088036,0.00027066,92366.0,92365.0,0.0691035]
[1764886095940,0.02919066,92366.0,92365.0,0.0691035]
[1764886096241,0.05810066,92366.0,92365.0,0.0691035]
[1764886098356,0.05810066,92366.0,92365.0,0.05828]
[1764886099441,0.05810066,92366.0,92365.0,0.03049]
[1764886099745,0.0686539,92362.0,92361.0,0.05728]
[1764886100849,0.05783,92362.0,92361.0,0.05728]
[1764886101054,0.00127066,92366.0,92365.0,0.0681035]
[1764886101251,0.00127066,92366.0,92365.0,0.07052352]
[1764886101550,0.00027066,92366.0,92365.0,0.07052352]
[1764886102648,0.00027066,92366.0,92365.0,0.07252352]
[1764886106452,0.02919066,92366.0,92365.0,0.07252352]
[1764886106755,0.05810066,92366.0,92365.0,0.07252352]
[1764886111554,0.06892406,92366.0,92365.0,0.0128235]
[1764886111750,0.06892406,92366.0,92365.0,0.0423135]
[1764886111956,0.06892406,92366.0,92365.0,0.0701035]
[1764886112457,0.06892406,92366.0,92365.0,0.002]
[1764886112655,0.0686537,92363.0,92362.0,0.0108238]
[1764886112962,0.0686537,92363.0,92356.0,0.00016244]
[1764886112963,0.010824,92361.0,92360.0,0.010824]
[1764886113264,0.010824,92361.0,92356.0,0.00016244]
[1764886113265,0.05783,92357.0,92356.0,0.01098704]
[1764886113557,0.05783,92357.0,92356.0,0.04047704]
[1764886113760,0.05783,92357.0,92356.0,0.06826704]
[1764886115459,0.05783,92357.0,92356.0,0.03365244]
[1764886115658,0.05783,92357.0,92356.0,0.06270244]
[1764886119360,0.01109406,92366.0,92362.0,0.0694039]
[1764886119361,0.05743,92363.0,92362.0,0.0694039]
[1764886121461,0.05743,92363.0,92362.0,0.0714039]
[1764886121665,0.0682537,92363.0,92362.0,0.0714039]
[1764886127554,0.05743,92363.0,92362.0,0.0714039]
[1764886138082,0.05743,92363.0,92362.0,0.002]
[1764886139969,0.0664544,92357.0,92356.0,0.00016244]
[1764886140170,0.0664544,92357.0,92356.0,0.02970244]
[1764886140369,0.0664544,92357.0,92356.0,0.05912244]
[1764886141573,0.01778,92360.0,92340.0,0.01719]
[1764886141574,0.0664561,92343.0,92340.0,0.03893947]
[1764886141785,0.0664567,92342.0,92341.0,0.0697862]
[1764886141975,0.05563,92335.0,92334.0,0.10872657]
[1764886142173,0.05563,92335.0,92334.0,0.0697871]
[1764886143872,0.07215,92335.0,92334.0,0.0717871]
[1764886144273,0.05563,92335.0,92334.0,0.0717871]
[1764886145377,0.05563,92335.0,92334.0,0.0697871]
[1764886145573,0.05563,92335.0,92334.0,0.0707871]
[1764886146683,0.05563,92335.0,92334.0,0.0697871]
[1764886146878,0.05563,92335.0,92334.0,0.0707871]
[1764886148379,0.05623244,92344.0,92343.0,0.05749]
[1764886148584,0.00016244,92344.0,92343.0,0.05991002]
[1764886148884,0.02871244,92344.0,92343.0,0.05991002]
[1764886149380,0.00016244,92344.0,92343.0,0.05991002]
[1764886149576,0.00016244,92344.0,92343.0,0.06091002]
[1764886150176,0.00016244,92344.0,92343.0,0.06291002]
[1764886150781,0.00016244,92344.0,92343.0,0.06391002]
[1764886151470,0.05623244,92344.0,92343.0,0.06391002]
[1764886152282,0.05623244,92344.0,92343.0,0.05991002]
[1764886152479,0.05623244,92344.0,92343.0,0.06291002]
[1764886156485,0.06705844,92344.0,92343.0,0.06291002]
[1764886156879,0.05623244,92344.0,92343.0,0.06291002]
[1764886158791,0.05623244,92344.0,92343.0,0.06191002]
[1764886159380,0.05623244,92344.0,92343.0,0.05991002]
[1764886159589,0.05623244,92344.0,92343.0,0.06191002]
[1764886159990,0.05623244,92344.0,92343.0,0.05991002]
[1764886160190,0.05623244,92344.0,92343.0,0.06191002]
[1764886167789,0.07215244,92344.0,92343.0,0.06191002]
[1764886167978,0.07215244,92344.0,92343.0,0.05949]
[1764886168288,0.07215244,92344.0,92343.0,0.002]
[1764886168494,0.05607,92342.0,92341.0,0.0403662]
[1764886169291,0.05607,92342.0,92341.0,0.0683162]
[1764886169887,0.05607,92342.0,92341.0,0.0693162]
[1764886170884,0.05707,92342.0,92341.0,0.0693162]
[1764886171586,0.05707,92342.0,92341.0,0.0683162]
[1764886172185,0.05707,92342.0,92341.0,0.0693162]
[1764886172381,0.05607,92342.0,92341.0,0.0693162]
[1764886173691,0.00016244,92344.0,92343.0,0.0683161]
[1764886173886,0.00016244,92344.0,92343.0,0.07073612]
[1764886174096,0.02871244,92344.0,92343.0,0.07073612]
[1764886174485,0.05769244,92344.0,92343.0,0.07073612]
[1764886174883,0.05769244,92344.0,92343.0,0.07173612]
[1764886175996,0.05769244,92344.0,92343.0,0.07373612]
[1764886177201,0.08046491,92344.0,92343.0,0.07373612]
[1764886178202,0.08046491,92344.0,92343.0,0.07273612]
[1764886179287,0.08046491,92344.0,92343.0,0.07073612]
[1764886179493,0.08046491,92344.0,92343.0,0.07373612]
[1764886179995,0.02293491,92344.0,92343.0,0.07373612]
[1764886180794,0.02261003,92344.0,92343.0,0.07373612]
[1764886181402,0.01679,92370.0,92363.0,0.05827]
[1764886181403,0.08637506,92364.0,92363.0,0.05827]
[1764886181603,0.11535506,92364.0,92363.0,0.05827]
[1764886182101,0.0846441,92360.0,92359.0,0.0108241]
[1764886182293,0.0846441,92360.0,92359.0,0.0690941]
[1764886185698,0.07382,92360.0,92359.0,0.0690941]
[1764886187612,0.07382,92360.0,92359.0,0.0700941]
[1764886189509,0.07382,92360.0,92359.0,0.0710941]
[1764886193305,0.09656242,92360.0,92359.0,0.0690941]
[1764886193507,0.09656242,92360.0,92359.0,0.0710941]
[1764886195608,0.09656242,92360.0,92359.0,0.0700941]
[1764886196713,0.09656242,92360.0,92359.0,0.0690941]
[1764886197021,0.09656242,92360.0,92359.0,0.0710941]
[1764886198321,0.07977242,92360.0,92359.0,0.0710941]
[1764886199621,0.02274242,92360.0,92359.0,0.0710941]
[1764886199823,0.07939242,92360.0,92359.0,0.0690941]
[1764886200122,0.07939242,92360.0,92359.0,0.0700941]
[1764886201425,0.07939242,92360.0,92359.0,0.0690941]
[1764886201628,0.07939242,92360.0,92359.0,0.0700941]
[1764886202122,0.07939242,92360.0,92359.0,0.0690941]
[1764886202428,0.07939242,92360.0,92359.0,0.0720941]
[1764886202822,0.07939242,92360.0,92359.0,0.0690941]
[1764886203023,0.07939242,92360.0,92359.0,0.0720941]
[1764886205120,0.07939242,92360.0,92359.0,0.0690941]
[1764886205424,0.07939242,92360.0,92359.0,0.0720941]
[1764886205820,0.07939242,92360.0,92359.0,0.0690941]
[1764886206027,0.07939242,92360.0,92359.0,0.0720941]
[1764886208123,0.07939242,92360.0,92359.0,0.0690941]
[1764886208321,0.07939242,92360.0,92359.0,0.0710941]
[1764886208832,0.07939242,92360.0,92359.0,0.0690941]
[1764886209020,0.07939242,92360.0,92359.0,0.0710941]
[1764886210327,0.02274242,92360.0,92359.0,0.0710941]
[1764886210531,0.07986242,92360.0,92359.0,0.0710941]
[1764886211221,0.02274242,92360.0,92359.0,0.0710941]
[1764886212830,0.02274242,92360.0,92359.0,0.0730941]
[1764886213231,0.07986242,92360.0,92359.0,0.0730941]
[1764886213432,0.02274242,92360.0,92359.0,0.0730941]
[1764886214534,0.00027066,92366.0,92365.0,0.0693935]
[1764886214837,0.02305925,92366.0,92365.0,0.07181352]
[1764886215218,0.05058925,92366.0,92365.0,0.07181352]
[1764886215421,0.02305925,92366.0,92365.0,0.07181352]
[1764886215728,0.02305925,92366.0,92365.0,0.07781352]
[1764886216230,0.05058925,92366.0,92365.0,0.07781352]
[1764886216636,0.02305925,92366.0,92365.0,0.07781352]
[1764886216824,0.02305925,92366.0,92365.0,0.07881352]
[1764886217325,0.02305925,92366.0,92365.0,0.08873882]
[1764886217527,0.02305925,92366.0,92365.0,0.08973882]
[1764886217831,0.02305925,92366.0,92365.0,0.08773882]
[1764886218224,0.02305925,92366.0,92365.0,0.08373882]
[1764886218424,0.05058925,92366.0,92365.0,0.08873882]
[1764886218622,0.02305925,92366.0,92365.0,0.08873882]
[1764886218834,0.05058925,92366.0,92365.0,0.07181352]
[1764886219133,0.02305925,92366.0,92365.0,0.07681352]
[1764886219524,0.02305925,92366.0,92365.0,0.07281352]
[1764886219724,0.02305925,92366.0,92365.0,0.08772585]
[1764886221636,0.02305925,92366.0,92365.0,0.08372585]
[1764886221826,0.02305925,92366.0,92365.0,0.08772585]
[1764886222027,0.02305925,92366.0,92365.0,0.08872585]
[1764886222333,0.02305925,92366.0,92365.0,0.08772585]
[1764886225536,0.02305925,92366.0,92365.0,0.08272585]
[1764886225733,0.02305925,92366.0,92365.0,0.08772585]
[1764886226342,0.02305925,92366.0,92365.0,0.08672585]
[1764886226534,0.02305925,92366.0,92365.0,0.08772585]
[1764886227729,0.02305925,92366.0,92365.0,0.08372585]
[1764886227936,0.00027066,92366.0,92365.0,0.08772585]
[1764886228650,0.05739066,92366.0,92365.0,0.08672585]
[1764886228840,0.05739066,92366.0,92365.0,0.08372585]
[1764886229144,0.02780066,92366.0,92365.0,0.08772585]
[1764886229348,0.00027066,92366.0,92365.0,0.08772585]
[1764886233539,0.02305541,92366.0,92365.0,0.08772585]
[1764886233732,0.00027066,92366.0,92365.0,0.08772585]
[1764886239639,0.00027066,92366.0,92365.0,0.08772585]
[1764886247442,0.02306685,92366.0,92365.0,0.08772585]
[1764886249755,0.05230685,92366.0,92365.0,0.08772585]
[1764886250545,0.05230685,92366.0,92365.0,0.08672585]
[1764886250748,0.05230685,92366.0,92365.0,0.08772585]
[1764886251555,0.05230685,92366.0,92365.0,0.08372585]
[1764886251857,0.05230685,92366.0,92365.0,0.08772585]
[1764886252048,0.05230685,92366.0,92365.0,0.08672585]
[1764886252253,0.05230685,92366.0,92365.0,0.08372585]
[1764886252558,0.02306685,92366.0,92365.0,0.08772585]
[1764886253655,0.02306685,92366.0,92365.0,0.08672585]
[1764886253855,0.02306685,92366.0,92365.0,0.08772585]
[1764886254057,0.08089685,92366.0,92365.0,0.07681352]
[1764886255257,0.08089685,92366.0,92365.0,0.07581352]
[1764886255457,0.08089685,92366.0,92365.0,0.07681352]
[1764886255959,0.08089685,92366.0,92365.0,0.07281352]
[1764886256260,0.08089685,92366.0,92365.0,0.07681352]
[1764886257454,0.08089685,92366.0,92365.0,0.13525274]
[1764886259061,0.02306685,92366.0,92365.0,0.13525274]
[1764886259258,0.11354714,92400.0,92365.0,0.07681352]
[1764886259259,0.05832506,92383.0,92365.0,0.07681352]
[1764886259462,0.05832506,92385.0,92384.0,0.0674513]
[1764886259664,0.05783,92390.0,92389.0,0.0674507]
[1764886259965,0.05783,92390.0,92389.0,0.06987072]
[1764886261866,0.05983,92390.0,92389.0,0.06987072]
[1764886262563,0.06083,92390.0,92389.0,0.06987072]
[1764886262952,0.05883,92390.0,92389.0,0.07287072]
[1764886263148,0.05783,92390.0,92389.0,0.07287072]
[1764886264663,0.05783,92390.0,92389.0,0.06987072]
[1764886264857,0.05783,92390.0,92389.0,0.07287072]
[1764886266365,0.05783,92390.0,92389.0,0.04583072]
[1764886266762,0.05783,92390.0,92389.0,0.07428072]
[1764886268058,0.05783,92390.0,92389.0,0.07328072]
[1764886268763,0.05783,92390.0,92389.0,0.07228072]
[1764886276270,0.05783,92390.0,92389.0,0.0698607]
[1764886276776,0.05783,92390.0,92389.0,0.001]
[1764886277063,0.05783,92390.0,92389.0,0.02841]
[1764886277266,0.05783,92390.0,92389.0,0.05686]
[1764886279270,0.05783,92390.0,92389.0,0.001]
[1764886279771,0.0835122,92376.0,92375.0,0.01098474]
[1764886280165,0.0835122,92376.0,92375.0,0.03839474]
[1764886281667,0.07269,92376.0,92375.0,0.06684474]
[1764886281871,0.07269,92376.0,92375.0,0.06784474]
[1764886284475,0.07269,92376.0,92375.0,0.06684474]
[1764886288171,0.07269,92376.0,92375.0,0.06784474]
[1764886293778,0.07269,92376.0,92375.0,0.00116244]
[1764886293972,0.07269,92376.0,92365.0,0.03897614]
[1764886293973,0.0108234,92366.0,92365.0,0.03897614]
[1764886294184,0.0558,92362.0,92361.0,0.0407139]
[1764886294478,0.0558,92362.0,92361.0,0.0703739]
[1764886294886,0.0558,92362.0,92361.0,0.0108239]
[1764886295078,0.0558,92362.0,92361.0,0.0703739]
[1764886295487,0.0558,92362.0,92361.0,0.0713739]
[1764886297075,0.0558,92362.0,92361.0,0.0703739]
[1764886297276,0.0558,92362.0,92361.0,0.05955]
[1764886300096,0.0815843,92358.0,92357.0,0.0703743]
[1764886300585,0.0666243,92358.0,92357.0,0.0703743]
[1764886301187,0.0558,92358.0,92357.0,0.0703743]
[1764886301486,0.0558,92358.0,92357.0,0.0713743]
[1764886301895,0.0558,92358.0,92357.0,0.0703743]
[1764886302085,0.0558,92358.0,92357.0,0.0713743]
[1764886303996,0.0558,92358.0,92357.0,0.0703743]
[1764886304196,0.0558,92358.0,92357.0,0.0713743]
[1764886304792,0.0669149,92353.0,92352.0,0.05453244]
[1764886306987,0.0669149,92353.0,92352.0,0.00016244]
[1764886307500,0.0669149,92353.0,92352.0,0.02745244]
[1764886307795,0.0669149,92353.0,92352.0,0.02945244]
[1764886308895,0.0669149,92353.0,92352.0,0.00216244]
[1764886312601,0.05609,92332.0,92331.0,0.0108275]
[1764886312801,0.05609,92332.0,92331.0,0.0651975]
[1764886313703,0.05609,92332.0,92331.0,0.0671975]
[1764886314297,0.05609,92332.0,92331.0,0.0741975]
[1764886318205,0.02753,92332.0,92331.0,0.0741975]
[1764886318406,0.05609,92340.0,92339.0,0.0651966]
[1764886318710,0.05609,92340.0,92339.0,0.06761662]
[1764886319616,0.05609,92340.0,92339.0,0.06861662]
[1764886321510,0.05609,92340.0,92339.0,0.07261662]
[1764886330716,0.02753,92340.0,92339.0,0.07261662]
[1764886331411,0.05737,92340.0,92339.0,0.07261662]
[1764886331606,0.02753,92340.0,92339.0,0.07261662]
[1764886331814,0.02905244,92341.0,92340.0,0.07282]
[1764886332012,0.02905244,92341.0,92340.0,0.07524002]
[1764886332313,0.05889244,92341.0,92340.0,0.07524002]
[1764886332913,0.05889244,92341.0,92340.0,0.07624002]
[1764886333315,0.05889244,92341.0,92340.0,0.08024002]
[1764886345911,0.05889244,92341.0,92340.0,0.06378002]
[1764886346316,0.05889244,92341.0,92340.0,0.10275616]
[1764886352614,0.05873,92338.0,92336.0,0.03897614]
[1764886352812,0.02889,92329.0,92328.0,0.03897614]
[1764886353009,0.05873,92329.0,92328.0,0.03897614]
[1764886353413,0.05873,92327.0,92326.0,0.06656692]
[1764886353613,0.05873,92327.0,92326.0,0.06898694]
[1764886353817,0.05873,92327.0,92326.0,0.02759078]
[1764886354721,0.05873,92327.0,92326.0,0.02959078]
[1764886356012,0.05873,92327.0,92326.0,0.03559078]
[1764886357425,0.08278849,92327.0,92326.0,0.00827078]
[1764886359027,0.08378849,92327.0,92326.0,0.00227078]
[1764886359221,0.08378849,92327.0,92326.0,0.00027078]
[1764886369837,0.08374372,92327.0,92326.0,0.00027078]
[1764886370936,0.05711,92323.0,92322.0,0.00016244]
[1764886371138,0.09195212,92323.0,92322.0,0.00016244]
[1764886372336,0.09295212,92323.0,92322.0,0.00016244]
[1764886373233,0.09295212,92323.0,92322.0,0.00116244]
[1764886373432,0.09295212,92323.0,92322.0,0.01199094]
[1764886374743,0.09295212,92323.0,92322.0,0.06905094]
[1764886374939,0.09295212,92323.0,92322.0,0.04137094]
[1764886375139,0.09295212,92323.0,92322.0,0.01199094]
[1764886375831,0.09295212,92323.0,92322.0,0.04137094]
[1764886379343,0.09295212,92323.0,92322.0,0.01199094]
[1764886379540,0.09295212,92323.0,92322.0,0.00116244]
[1764886380241,0.0108296,92318.0,92317.0,0.067889]
[1764886380443,0.09195332,92318.0,92317.0,0.067889]
[1764886381334,0.08112372,92318.0,92317.0,0.068889]
[1764886381746,0.08112372,92318.0,92317.0,0.069889]
[1764886382131,0.02401372,92318.0,92317.0,0.069889]
[1764886382336,0.00016244,92327.0,92325.0,0.0678882]
[1764886382337,0.08114894,92326.0,92325.0,0.0678882]
[1764886382538,0.08114856,92326.0,92325.0,0.0678882]
[1764886384149,0.08214856,92326.0,92325.0,0.0678882]
[1764886390952,0.05446856,92326.0,92325.0,0.0831982]
[1764886391146,0.08239856,92326.0,92325.0,0.0831982]
[1764886393749,0.08139856,92326.0,92325.0,0.0831982]
[1764886393946,0.08239856,92326.0,92325.0,0.0831982]
[1764886394751,0.08239856,92326.0,92325.0,0.0841982]
[1764886394951,0.08139856,92326.0,92325.0,0.0841982]
[1764886395150,0.05836,92326.0,92325.0,0.0688882]
[1764886395356,0.05836,92326.0,92325.0,0.0857882]
[1764886396758,0.05736,92326.0,92325.0,0.0857882]
[1764886397153,0.05736,92326.0,92325.0,0.0847882]
[1764886397355,0.00016244,92327.0,92326.0,0.05485]
[1764886397657,0.05579,92346.0,92345.0,0.0656759]
[1764886397849,0.07993364,92346.0,92345.0,0.0656759]
[1764886398255,0.05200364,92346.0,92345.0,0.0656759]
[1764886398454,0.02414364,92346.0,92345.0,0.0656759]
[1764886398648,0.05200364,92346.0,92345.0,0.0656759]
[1764886399162,0.07993364,92346.0,92345.0,0.0656759]
[1764886400061,0.08193364,92346.0,92345.0,0.0656759]
[1764886400653,0.08093364,92346.0,92345.0,0.0656759]
[1764886400860,0.08093364,92346.0,92345.0,0.0666759]
[1764886401862,0.08093364,92346.0,92345.0,0.0773857]
[1764886402058,0.08093364,92346.0,92345.0,0.0666759]
[1764886402460,0.05679,92346.0,92345.0,0.0666759]
[1764886402655,0.08089586,92346.0,92345.0,0.0666759]
[1764886403564,0.05579,92346.0,92345.0,0.0666759]
[1764886403766,0.05679,92346.0,92345.0,0.0666759]
[1764886404165,0.05579,92346.0,92345.0,0.0656759]
[1764886404474,0.05679,92346.0,92345.0,0.0656759]
[1764886405669,0.05579,92346.0,92345.0,0.0656759]
[1764886405962,0.05679,92346.0,92345.0,0.0656759]
[1764886406769,0.05679,92346.0,92345.0,0.0666759]
[1764886407070,0.05579,92346.0,92345.0,0.0666759]
[1764886407364,0.05579,92346.0,92345.0,0.0656759]
[1764886407565,0.05579,92346.0,92345.0,0.0666759]
[1764886407967,0.02802244,92355.0,92354.0,0.0656748]
[1764886408158,0.02802244,92355.0,92354.0,0.06809482]
[1764886409071,0.00016244,92355.0,92354.0,0.06809482]
[1764886409572,0.02802244,92355.0,92354.0,0.06809482]
[1764886410363,0.02802244,92355.0,92354.0,0.06909482]
[1764886410569,0.02802244,92355.0,92354.0,0.07009482]
[1764886411258,0.02802244,92355.0,92354.0,0.06909482]
[1764886411458,0.02802244,92355.0,92354.0,0.07009482]
[1764886411977,0.02802244,92355.0,92354.0,0.06909482]
[1764886412772,0.05606066,92366.0,92365.0,0.0656735]
[1764886412972,0.02813066,92366.0,92365.0,0.0656735]
[1764886413277,0.05606066,92366.0,92365.0,0.0656735]
[1764886413670,0.02813066,92366.0,92365.0,0.0656735]
[1764886413975,0.05606066,92366.0,92365.0,0.0656735]
[1764886414876,0.05606066,92366.0,92365.0,0.0666735]
[1764886415273,0.05786066,92366.0,92365.0,0.0666735]
[1764886415577,0.05986066,92366.0,92365.0,0.0666735]
[1764886416175,0.05886066,92366.0,92365.0,0.0666735]
[1764886422482,0.05886066,92366.0,92365.0,0.0118235]
[1764886422874,0.05886066,92366.0,92365.0,0.0391535]
[1764886423068,0.05886066,92366.0,92365.0,0.0685035]
[1764886425282,0.05886066,92366.0,92365.0,0.0413135]
[1764886425476,0.05886066,92366.0,92365.0,0.0118235]
[1764886425675,0.05886066,92366.0,92365.0,0.0702935]
[1764886426273,0.08292234,92366.0,92365.0,0.0702935]
[1764886427582,0.09374574,92366.0,92365.0,0.0702935]
[1764886429780,0.0829363,92366.0,92365.0,0.0702935]
[1764886430986,0.0829363,92366.0,92365.0,0.001]
[1764886436686,0.14126136,92366.0,92365.0,0.001]
[1764886438196,0.05545,92357.0,92356.0,0.00016244]
[1764886438389,0.07952564,92357.0,92356.0,0.00016244]
[1764886438695,0.09035004,92357.0,92356.0,0.00016244]
[1764886439400,0.09035004,92357.0,92356.0,0.00116244]
[1764886441096,0.09035004,92357.0,92356.0,0.00316244]
[1764886441999,0.09135004,92357.0,92356.0,0.00016244]
[1764886442184,0.09635004,92357.0,92356.0,0.00016244]
[1764886442687,0.09535004,92357.0,92356.0,0.02965244]
[1764886442884,0.09635004,92357.0,92356.0,0.05863244]
[1764886444101,0.09135004,92357.0,92356.0,0.05863244]
[1764886444291,0.09535004,92357.0,92356.0,0.05863244]
[1764886444784,0.09535004,92357.0,92356.0,0.06945704]
[1764886445101,0.09435004,92357.0,92356.0,0.06945704]
[1764886445794,0.09035004,92357.0,92356.0,0.06945704]
[1764886445993,0.09335004,92357.0,92356.0,0.06945704]
[1764886446188,0.08252564,92357.0,92356.0,0.06945704]
[1764886448282,0.08052564,92357.0,92356.0,0.06945704]
[1764886450407,0.08152564,92357.0,92356.0,0.06945704]
[1764886451198,0.08152564,92357.0,92356.0,0.08654704]
[1764886451585,0.07952564,92357.0,92356.0,0.08478704]
[1764886451788,0.08152564,92357.0,92356.0,0.08478704]
[1764886452687,0.08152564,92357.0,92356.0,0.06945704]
[1764886453202,0.07952564,92357.0,92356.0,0.06945704]
[1764886453403,0.08152564,92357.0,92356.0,0.06945704]
[1764886459198,0.08152564,92357.0,92356.0,0.04047704]
[1764886459398,0.08152564,92357.0,92356.0,0.01098704]
[1764886459900,0.08152564,92357.0,92356.0,0.03873704]
[1764886460108,0.08152564,92357.0,92356.0,0.00016244]
[1764886484134,0.08152564,92357.0,92356.0,0.02803244]
[1764886484326,0.08152564,92357.0,92356.0,0.05740244]
[1764886486339,0.07952564,92357.0,92356.0,0.05740244]
[1764886486531,0.08152564,92357.0,92356.0,0.05740244]
[1764886495334,0.08152564,92357.0,92356.0,0.06822704]
[1764886499935,0.07952564,92357.0,92356.0,0.06822704]
[1764886500240,0.10156663,92357.0,92356.0,0.06822704]
[1764886501837,0.04611663,92357.0,92356.0,0.06822704]
[1764886502732,0.00027066,92366.0,92365.0,0.05937]